bitfinex-derivatives/quotes_SOLF0:USTF0_20251101
["timestamp","ask_amount","ask_price","bid_price","bid_amount"]
[1762027603294,29.79193687,186.33,186.32,7.30795154]
[1762027604184,18.64363687,186.33,186.32,13.22025154]
[1762027604380,18.64363687,186.33,186.32,19.88390671]
[1762027606004,18.64363687,186.33,186.32,18.80390671]
[1762027606187,18.64363687,186.33,186.32,13.97160671]
[1762027611399,18.64363687,186.33,186.32,7.30795154]
[1762027613191,18.64363687,186.33,186.32,13.97160671]
[1762027615602,18.64363687,186.33,186.32,7.30795154]
[1762027615994,18.64363687,186.33,186.32,13.97160671]
[1762027617401,18.64363687,186.33,186.32,82.84795154]
[1762027618695,18.64363687,186.33,186.32,7.30795154]
[1762027618896,18.64363687,186.33,186.32,82.84795154]
[1762027619099,18.64363687,186.33,186.32,7.29864098]
[1762027619305,18.64363687,186.33,186.32,82.83864098]
[1762027619804,18.64363687,186.33,186.32,78.45]
[1762027620005,18.64363687,186.33,186.32,82.83825409]
[1762027620604,18.64363687,186.33,186.32,83.91825409]
[1762027621202,21.58363687,186.33,186.32,4.38825409]
[1762027621407,21.58363687,186.33,186.32,9.36620956]
[1762027621607,21.58363687,186.33,186.32,79.96825409]
[1762027621907,22.66363687,186.33,186.32,63.74]
[1762027622109,22.96648702,186.33,186.26,4.97795547]
[1762027622299,21.88648702,186.33,186.27,75.62]
[1762027624108,18.64363687,186.33,186.27,75.62]
[1762027624720,18.64363687,186.33,186.27,78.53]
[1762027626333,18.64363687,186.33,186.27,75.62]
[1762027627923,18.64363687,186.33,186.25,9.34319449]
[1762027628118,18.64363687,186.33,186.26,75.66]
[1762027633825,18.64363687,186.33,186.27,4.36793659]
[1762027634333,18.64363687,186.33,186.27,4.36754627]
[1762027635228,18.64363687,186.33,186.26,75.66]
[1762027635629,18.64363687,186.33,186.27,4.36675375]
[1762027636628,18.64363687,186.33,186.26,75.66]
[1762027636829,18.64363687,186.33,186.27,7.25627896]
[1762027637128,18.64363687,186.33,186.28,2.89]
[1762027637835,18.64363687,186.33,186.29,2.89]
[1762027638037,18.64363687,186.33,186.3,78.55]
[1762027639635,18.64363687,186.33,186.3,75.66]
[1762027640724,18.64363687,186.33,186.27,2.89]
[1762027640923,18.64363687,186.33,186.28,78.47]
[1762027647343,18.64363687,186.33,186.29,2.81]
[1762027652849,18.64363687,186.33,186.31,2.81]
[1762027654542,18.64363687,186.33,186.32,78.51]
[1762027655142,18.64363687,186.33,186.32,82.86297631]
[1762027656446,18.64363687,186.33,186.32,83.94297631]
[1762027656651,15.68363687,186.33,186.32,88.91085281]
[1762027656954,6.80363687,186.33,186.32,88.91085281]
[1762027663558,2.86,186.43,186.33,2.14]
[1762027663857,2.86,186.42,186.34,4.35297631]
[1762027664056,2.86,186.42,186.35,75.7]
[1762027665563,2.86,186.39,186.3,2.14]
[1762027665857,2.86,186.39,186.32,75.7]
[1762027678570,2.07536999,186.37,186.26,4.9678765]
[1762027678873,2.86,186.36,186.28,2.14]
[1762027687681,2.86,186.36,186.29,6.49711423]
[1762027687979,2.86,186.36,186.29,2.14]
[1762027693183,2.86,186.36,186.26,77.88]
[1762027693383,2.86,186.36,186.28,2.14]
[1762027693982,2.07536999,186.35,186.27,4.35605102]
[1762027694286,2.89,186.34,186.25,9.34319449]
[1762027704385,2.89,186.34,186.25,11.49319449]
[1762027704586,2.89,186.34,186.26,2.15]
[1762027705682,2.82,186.31,186.25,9.34319449]
[1762027720095,2.82,186.31,186.25,11.48319449]
[1762027728402,2.82,186.31,186.25,9.34319449]
[1762027728801,2.82,186.31,186.25,11.48319449]
[1762027736511,2.82,186.31,186.26,2.14]
[1762027739714,2.72,186.37,186.28,2.14]
[1762027739915,2.72,186.34,186.25,11.48319449]
[1762027740414,2.72,186.34,186.26,2.14]
[1762027740615,2.72,186.34,186.28,2.14]
[1762027744118,2.72,186.38,186.28,2.14]
[1762027744510,2.72,186.38,186.3,2.14]
[1762027749417,3.24524217,186.39,186.3,2.14]
[1762027749618,2.83,186.41,186.32,2.14]
[1762027749822,2.83,186.41,186.34,2.14]
[1762027750419,6.07524217,186.43,186.34,2.14]
[1762027752230,2.83,186.42,186.34,2.14]
[1762027771444,2.07489899,186.4,186.34,2.14]
[1762027776852,2.83,186.42,186.34,2.14]
[1762027783943,2.83,186.42,186.35,2.14]
[1762027787059,2.07489899,186.43,186.37,2.14]
[1762027788361,4.90489899,186.43,186.37,2.14]
[1762027789781,2.83,186.47,186.38,4.35527892]
[1762027789962,2.83,186.53,186.4,2.14]
[1762027790254,4.90489899,186.49,186.42,2.14]
[1762027790561,2.83,186.48,186.44,2.14]
[1762027796068,2.83,186.47,186.44,2.14]
[1762027800671,4.90489899,186.5,186.44,2.14]
[1762027802269,2.83,186.46,186.44,2.14]
[1762027804570,2.83,186.46,186.39,2.14]
[1762027804781,2.83,186.46,186.41,2.14]
[1762027805072,2.83,186.46,186.42,2.14]
[1762027807765,2.83,186.46,186.39,2.14]
[1762027808070,2.83,186.46,186.41,2.14]
[1762027813574,2.83,186.46,186.42,2.14]
[1762027821789,2.83,186.46,186.4,2.07489899]
[1762027821987,2.83,186.46,186.39,2.14]
[1762027823277,2.83,186.46,186.36,26.36]
[1762027823278,2.83,186.46,186.37,2.14]
[1762027823484,2.83,186.46,186.36,26.36]
[1762027823485,2.71,186.51,186.39,2.14]
[1762027823682,2.07489899,186.49,186.41,2.14]
[1762027823890,2.71,186.48,186.37,2.14]
[1762027824190,2.71,186.48,186.39,2.14]
[1762027825186,2.71,186.48,186.4,4.43776413]
[1762027825483,2.71,186.48,186.39,2.14]
[1762027825790,2.71,186.48,186.4,4.43796118]
[1762027825987,2.71,186.48,186.39,2.14]
[1762027826188,2.71,186.48,186.41,2.14]
[1762027830391,2.71,186.48,186.43,2.14]
[1762027832695,2.71,186.48,186.44,6.58558659]
[1762027832887,2.71,186.48,186.44,2.14]
[1762027838991,2.71,186.48,186.4,2.14]
[1762027839196,2.71,186.48,186.41,4.44869353]
[1762027839398,2.71,186.48,186.42,4.44869353]
[1762027839698,2.71,186.48,186.43,4.44869353]
[1762027839998,2.71,186.48,186.44,4.44869353]
[1762027840186,2.71,186.48,186.4,2.14]
[1762027840392,2.71,186.48,186.41,6.57773146]
[1762027840698,2.71,186.48,186.42,4.43773146]
[1762027840898,2.71,186.48,186.43,6.57773146]
[1762027841098,2.71,186.48,186.44,4.43773146]
[1762027841303,2.71,186.48,186.43,2.14]
[1762027841505,2.71,186.48,186.44,4.43745075]
[1762027841691,2.71,186.48,186.43,2.14]
[1762027841887,2.71,186.48,186.44,4.43754728]
[1762027842093,2.71,186.48,186.43,2.14]
[1762027842301,2.71,186.48,186.44,6.57754728]
[1762027842501,2.71,186.48,186.44,2.14]
[1762027851305,2.71,186.48,186.41,2.14]
[1762027851506,2.71,186.48,186.42,6.57815049]
[1762027851697,2.71,186.48,186.43,4.43815049]
[1762027851900,2.71,186.48,186.44,4.43815049]
[1762027852200,2.71,186.48,186.42,2.14]
[1762027852503,2.71,186.48,186.43,6.57814864]
[1762027852706,2.71,186.48,186.44,4.43814864]
[1762027852904,2.71,186.48,186.4,4.99137332]
[1762027853097,2.71,186.48,186.42,2.14]
[1762027853293,2.71,186.48,186.43,6.57829878]
[1762027853497,2.71,186.48,186.44,6.57829878]
[1762027853695,2.71,186.48,186.44,2.14]
[1762027856911,2.71,186.48,186.45,4.43622372]
[1762027857112,2.71,186.48,186.44,2.14]
[1762027857316,2.71,186.48,186.45,4.43622372]
[1762027857610,2.71,186.48,186.44,2.14]
[1762027857813,2.71,186.48,186.45,4.43620395]
[1762027858111,2.71,186.48,186.44,2.14]
[1762027858313,2.71,186.48,186.45,4.43485742]
[1762027858515,2.71,186.48,186.44,2.14]
[1762027858813,2.71,186.48,186.45,4.43468244]
[1762027859016,2.71,186.48,186.44,2.14]
[1762027859213,2.71,186.48,186.45,4.43468244]
[1762027859417,2.71,186.48,186.44,2.14]
[1762027859714,2.71,186.48,186.45,4.43468112]
[1762027859911,2.85,186.52,186.46,2.14]
[1762027865330,2.85,186.52,186.42,2.14]
[1762027865531,2.85,186.52,186.43,6.57142724]
[1762027865733,2.85,186.52,186.45,2.14]
[1762027868630,2.85,186.52,186.42,2.14]
[1762027868836,2.85,186.52,186.43,4.43267089]
[1762027869036,2.85,186.52,186.44,4.43267089]
[1762027869235,2.85,186.52,186.42,2.14]
[1762027869435,2.85,186.52,186.43,4.37583439]
[1762027869636,2.85,186.52,186.42,2.14]
[1762027869637,2.85,186.52,186.44,4.37583439]
[1762027869936,2.85,186.52,186.42,2.14]
[1762027870237,2.85,186.52,186.43,4.3762001]
[1762027870437,2.85,186.52,186.44,4.3762001]
[1762027870632,2.85,186.52,186.42,2.14]
[1762027870931,2.85,186.52,186.43,4.37656952]
[1762027871128,2.85,186.52,186.44,4.37656952]
[1762027871328,2.85,186.52,186.42,2.14]
[1762027871531,2.85,186.52,186.43,4.37789275]
[1762027871829,2.85,186.52,186.42,2.14]
[1762027872033,2.85,186.52,186.43,4.37789336]
[1762027872225,2.85,186.52,186.42,2.14]
[1762027872433,2.85,186.52,186.43,4.37777632]
[1762027872633,2.85,186.52,186.44,4.37777632]
[1762027872934,2.85,186.52,186.42,2.14]
[1762027873136,2.85,186.52,186.43,4.37715228]
[1762027873324,2.85,186.52,186.44,4.37715228]
[1762027873526,2.85,186.52,186.42,2.14]
[1762027873730,2.85,186.52,186.43,4.37733808]
[1762027873931,2.85,186.52,186.44,4.37733808]
[1762027874129,2.85,186.52,186.42,2.14]
[1762027874338,2.85,186.52,186.43,4.37738]
[1762027874530,2.85,186.52,186.44,4.37738]
[1762027874730,2.84,186.51,186.42,2.14]
[1762027874934,2.84,186.51,186.43,4.37753956]
[1762027875135,2.84,186.51,186.44,4.37753956]
[1762027875431,2.84,186.51,186.42,2.14]
[1762027875638,2.84,186.51,186.43,4.37776083]
[1762027875832,2.84,186.51,186.44,4.37776083]
[1762027876033,2.84,186.51,186.42,2.14]
[1762027876233,2.84,186.51,186.43,6.51802483]
[1762027876433,2.84,186.51,186.44,4.37802483]
[1762027876632,2.84,186.51,186.43,2.14]
[1762027877541,2.84,186.51,186.44,4.37864816]
[1762027877736,2.84,186.51,186.42,2.14]
[1762027877938,2.84,186.51,186.43,6.51864632]
[1762027878139,2.84,186.51,186.44,4.37864632]
[1762027878442,2.84,186.51,186.43,2.14]
[1762027878642,2.84,186.51,186.44,4.37865755]
[1762027878836,2.84,186.51,186.43,2.14]
[1762027882341,2.84,186.51,186.44,4.3791836]
[1762027882538,2.84,186.51,186.44,2.14]
[1762027884546,75.66,186.52,186.4,4.99184934]
[1762027884547,2.84,186.48,186.4,2.14]
[1762027884750,2.84,186.48,186.42,2.14]
[1762027885637,2.84,186.48,186.43,4.37043246]
[1762027885946,2.84,186.48,186.42,2.14]
[1762027885947,2.84,186.48,186.45,2.14]
[1762027889148,2.84,186.48,186.4,2.14]
[1762027889346,2.84,186.48,186.42,2.14]
[1762027889542,2.84,186.48,186.43,6.5099534]
[1762027889750,2.84,186.48,186.43,2.14]
[1762027890347,2.84,186.48,186.39,2.14]
[1762027890646,2.84,186.48,186.4,6.51129122]
[1762027890849,2.84,186.48,186.41,4.37129122]
[1762027891143,2.84,186.48,186.4,2.14]
[1762027891349,2.84,186.48,186.41,4.37050433]
[1762027891547,2.84,186.48,186.4,2.14]
[1762027891744,2.84,186.48,186.41,6.51044928]
[1762027891950,2.84,186.48,186.41,2.14]
[1762027892551,2.84,186.48,186.42,4.36922982]
[1762027892742,2.84,186.48,186.41,2.14]
[1762027892944,2.84,186.48,186.43,2.14]
[1762027893445,2.0732867,186.49,186.43,2.14]
[1762027893646,4.9132867,186.49,186.43,2.14]
[1762027894850,2.84,186.48,186.43,2.14]
[1762027895251,2.0732867,186.49,186.43,2.14]
[1762027895252,4.9132867,186.46,186.43,2.14]
[1762027897453,2.92,186.49,186.43,2.14]
[1762027897653,2.92,186.47,186.43,2.14]
[1762027901653,4.9932867,186.45,186.43,2.14]
[1762027904061,2.92,186.44,186.39,2.14]
[1762027904251,2.92,186.44,186.41,2.14]
[1762027921264,4.9932867,186.47,186.41,2.14]
[1762027921657,4.9932867,186.47,186.43,2.14]
[1762027922873,2.92,186.49,186.45,2.14]
[1762027924072,2.0732867,186.5,186.45,2.14]
[1762027924372,4.9932867,186.52,186.45,2.14]
[1762027925269,4.9932867,186.52,186.47,2.14]
[1762027925670,2.92,186.51,186.47,2.14]
[1762027932559,2.96,186.51,186.47,2.14]
[1762027944091,2.0732867,186.49,186.47,2.14]
[1762027945195,4.9732867,186.52,186.47,2.14]
[1762027945394,2.9,186.51,186.47,2.14]
[1762027952698,2.9,186.51,186.42,4.428288]
[1762027952899,2.9,186.51,186.39,24.5305]
[1762027952900,2.9,186.47,186.44,2.14]
[1762027953109,2.9,186.44,186.41,2.14]
[1762027958408,2.9,186.44,186.38,2.14]
[1762027958606,2.9,186.44,186.4,2.14]
[1762027958807,2.9,186.44,186.41,6.5755155]
[1762027959007,2.9,186.44,186.41,2.14]
[1762027964717,2.9,186.48,186.41,2.14]
[1762027968120,2.9,186.48,186.42,6.57893401]
[1762027968323,2.9,186.48,186.42,2.14]
[1762027968818,2.9,186.48,186.43,6.57814866]
[1762027969022,2.9,186.48,186.43,2.14]
[1762027970522,2.9,186.48,186.39,2.14]
[1762027970716,2.9,186.48,186.41,2.14]
[1762027970914,3.24031809,186.47,186.42,4.43835353]
[1762027971118,2.9,186.46,186.41,2.14]
[1762027992242,2.9,186.46,186.42,4.42639474]
[1762027992435,2.9,186.46,186.41,2.14]
[1762027992744,2.9,186.46,186.42,6.55652089]
[1762027992933,2.9,186.46,186.42,2.13]
[1762027996238,2.9,186.46,186.43,4.4324888]
[1762027996430,2.9,186.46,186.42,2.13]
[1762027996625,2.9,186.46,186.43,6.5625722]
[1762027996846,2.9,186.46,186.43,2.13]
[1762027997343,2.9,186.46,186.4,2.13]
[1762027997638,2.9,186.46,186.42,2.13]
[1762027997832,2.9,186.46,186.43,4.43561829]
[1762027998035,2.9,186.46,186.42,2.13]
[1762027998240,2.9,186.46,186.43,4.43537025]
[1762027998440,2.9,186.46,186.44,4.43537025]
[1762027998640,2.9,186.46,186.42,2.13]
[1762027998840,2.9,186.46,186.43,4.43605954]
[1762027999140,2.9,186.46,186.44,4.43605954]
[1762027999334,2.9,186.46,186.42,2.13]
[1762027999535,2.9,186.46,186.43,4.4362812]
[1762027999739,2.9,186.46,186.44,4.4362812]
[1762027999931,2.9,186.46,186.42,2.13]
[1762028000127,2.9,186.46,186.43,4.43615809]
[1762028000342,2.9,186.46,186.44,4.43615809]
[1762028000541,2.9,186.46,186.42,2.13]
[1762028000741,2.9,186.46,186.43,4.43609901]
[1762028001042,2.9,186.46,186.44,4.43609901]
[1762028001343,2.9,186.46,186.42,2.13]
[1762028001543,2.9,186.46,186.43,4.43641614]
[1762028001745,2.9,186.46,186.44,4.43641614]
[1762028001945,2.9,186.46,186.42,2.13]
[1762028002147,2.9,186.46,186.43,4.43622508]
[1762028002346,2.9,186.46,186.44,4.43622508]
[1762028002646,2.9,186.46,186.42,2.13]
[1762028002845,2.9,186.46,186.43,4.43665318]
[1762028003044,2.9,186.46,186.44,4.43650173]
[1762028003246,2.9,186.46,186.42,2.13]
[1762028003445,2.9,186.46,186.43,4.43692459]
[1762028003646,2.9,186.46,186.44,4.43692459]
[1762028003841,2.9,186.46,186.41,2.14]
[1762028004042,2.9,186.46,186.42,6.57791875]
[1762028004248,2.9,186.46,186.43,6.57791875]
[1762028004546,2.9,186.46,186.4,2.14]
[1762028004742,2.9,186.46,186.41,6.56299325]
[1762028004938,2.9,186.46,186.42,4.42299325]
[1762028005146,2.9,186.46,186.41,2.14]
[1762028009947,3.24031809,186.45,186.37,4.98728004]
[1762028010146,3.24031809,186.45,186.34,6.66365517]
[1762028010147,2.74,186.44,186.38,4.41203944]
[1762028010450,2.74,186.44,186.36,2.14]
[1762028010652,2.74,186.44,186.37,4.41131676]
[1762028010853,2.74,186.44,186.38,4.41131676]
[1762028011056,2.74,186.44,186.36,2.14]
[1762028011348,2.74,186.44,186.37,4.41131898]
[1762028011545,2.74,186.44,186.36,2.14]
[1762028011745,2.74,186.44,186.37,4.40986711]
[1762028012044,2.74,186.44,186.36,2.14]
[1762028012251,2.74,186.44,186.37,4.40986933]
[1762028012551,2.74,186.44,186.36,2.14]
[1762028012742,2.74,186.44,186.37,4.40869428]
[1762028013041,2.74,186.44,186.36,2.14]
[1762028013243,2.74,186.44,186.37,4.40869428]
[1762028013442,2.74,186.44,186.36,2.14]
[1762028013653,2.74,186.44,186.37,4.40777359]
[1762028013850,2.74,186.44,186.36,2.14]
[1762028014051,2.74,186.44,186.37,4.40801783]
[1762028014253,2.74,186.44,186.36,2.14]
[1762028014453,2.74,186.44,186.37,4.40739164]
[1762028014653,2.74,186.44,186.36,2.14]
[1762028014861,2.74,186.44,186.37,4.40726954]
[1762028015057,2.74,186.44,186.36,2.14]
[1762028015253,2.74,186.44,186.37,4.40726954]
[1762028015458,2.74,186.42,186.36,2.14]
[1762028015758,2.74,186.42,186.37,6.54661357]
[1762028015947,2.74,186.42,186.37,2.14]
[1762028021462,2.74,186.42,186.33,2.14]
[1762028021650,2.74,186.42,186.3,6.66365517]
[1762028021651,2.78,186.39,186.35,2.14]
[1762028023656,2.07434538,186.37,186.3,2.14]
[1762028023853,2.78,186.36,186.32,2.14]
[1762028024053,2.78,186.39,186.32,2.14]
[1762028028063,2.78,186.33,186.26,2.14]
[1762028028263,2.07434538,186.4,186.28,4.21434538]
[1762028028561,2.78,186.39,186.3,2.14]
[1762028029265,2.78,186.39,186.32,2.14]
[1762028032466,2.78,186.39,186.35,2.14]
[1762028033661,2.78,186.42,186.35,2.14]
[1762028047080,2.78,186.42,186.34,2.14]
[1762028047280,2.78,186.42,186.35,4.39598991]
[1762028047481,2.78,186.42,186.35,2.14]
[1762028050381,2.78,186.42,186.36,4.39829279]
[1762028050573,2.78,186.42,186.36,2.14]
[1762028073299,2.78,186.42,186.33,2.07434538]
[1762028073300,2.78,186.42,186.37,6.54762701]
[1762028073493,2.78,186.42,186.37,2.14]
[1762028084799,2.78,186.42,186.38,4.41214999]
[1762028085102,2.78,186.42,186.37,2.14]
[1762028085303,2.78,186.42,186.38,4.41214999]
[1762028085604,2.78,186.42,186.37,2.14]
[1762028085804,2.78,186.42,186.38,4.41212556]
[1762028086003,2.78,186.42,186.37,2.14]
[1762028086194,2.78,186.42,186.38,4.41212556]
[1762028086395,2.78,186.42,186.37,2.14]
[1762028086600,2.78,186.42,186.38,4.41200766]
[1762028086903,2.78,186.42,186.37,2.14]
[1762028087106,2.78,186.42,186.38,4.41213187]
[1762028087298,2.78,186.42,186.37,2.14]
[1762028087598,2.78,186.42,186.38,4.41211068]
[1762028087797,2.78,186.42,186.37,2.14]
[1762028087998,2.78,186.42,186.38,4.41213353]
[1762028088194,2.78,186.42,186.37,2.14]
[1762028088394,2.78,186.42,186.38,4.41191251]
[1762028088596,2.78,186.42,186.37,2.14]
[1762028088790,2.78,186.42,186.38,4.41166593]
[1762028088994,2.78,186.42,186.37,2.14]
[1762028089199,2.78,186.42,186.38,4.41166593]
[1762028089398,2.78,186.42,186.37,2.14]
[1762028089595,2.78,186.42,186.38,4.41167233]
[1762028089906,2.78,186.42,186.37,2.14]
[1762028090097,2.78,186.42,186.38,4.41154996]
[1762028090296,2.78,186.42,186.37,2.14]
[1762028090497,2.78,186.42,186.38,4.4116503]
[1762028090698,2.78,186.42,186.37,2.14]
[1762028090902,2.78,186.42,186.38,4.41167876]
[1762028091102,2.78,186.42,186.37,2.14]
[1762028091294,2.78,186.42,186.38,4.41167876]
[1762028091494,2.78,186.42,186.37,2.14]
[1762028091694,2.78,186.42,186.38,6.55133542]
[1762028091896,2.78,186.42,186.38,2.14]
[1762028094597,3.24088658,186.47,186.38,2.14]
[1762028094803,2.79,186.46,186.38,2.14]
[1762028102315,2.79,186.46,186.39,6.54437943]
[1762028102516,2.79,186.46,186.39,2.14]
[1762028108115,2.79,186.46,186.34,5.00211958]
[1762028108306,2.73,186.41,186.35,4.40440608]
[1762028108506,75.58,186.45,186.27,10.89985197]
[1762028108507,2.73,186.35,186.28,5.00211958]
[1762028108715,2.73,186.32,186.25,11.48319449]
[1762028108912,2.73,186.32,186.26,6.5189585]
[1762028109117,2.73,186.32,186.28,2.14]
[1762028113914,3.24088658,186.38,186.28,2.14]
[1762028114120,2.73,186.37,186.28,2.14]
[1762028137452,65.75417803,186.44,186.28,2.14]
[1762028137453,2.74,186.35,186.28,2.14]
[1762028152461,2.74,186.35,186.29,6.4899425]
[1762028152660,2.74,186.35,186.29,2.14]
[1762028155460,2.74,186.35,186.3,6.49648583]
[1762028155661,2.74,186.35,186.3,2.14]
[1762028169676,2.74,186.35,186.27,2.14]
[1762028169877,2.74,186.35,186.28,6.49933158]
[1762028170072,2.74,186.35,186.29,6.49933158]
[1762028170377,2.74,186.35,186.29,2.14]
[1762028171176,2.74,186.35,186.31,2.14]
[1762028181888,2.74,186.35,186.27,2.14]
[1762028182082,2.74,186.35,186.29,2.14]
[1762028182284,2.74,186.35,186.3,6.50167809]
[1762028182483,2.74,186.35,186.3,2.14]
[1762028183974,2.74,186.35,186.26,2.14]
[1762028184283,2.74,186.35,186.27,4.36297963]
[1762028184485,2.74,186.35,186.26,2.14]
[1762028184680,2.74,186.35,186.27,4.36200788]
[1762028184880,2.74,186.35,186.28,4.37752951]
[1762028185081,2.74,186.35,186.27,2.14]
[1762028185889,2.07585953,186.34,186.27,2.14]
[1762028186186,2.79,186.33,186.27,2.14]
[1762028192387,2.79,186.35,186.29,2.14]
[1762028192787,2.79,186.38,186.32,2.14]
[1762028193093,2.79,186.42,186.32,2.14]
[1762028194285,2.79,186.42,186.34,2.14]
[1762028195386,2.79,186.42,186.35,2.14]
[1762028220213,2.87,186.4,186.29,2.14]
[1762028220512,2.87,186.4,186.31,2.14]
[1762028220811,2.87,186.4,186.33,2.14]
[1762028230217,2.87,186.4,186.35,2.14]
[1762028233813,5.02034841,186.39,186.35,2.14]
[1762028234111,2.33034841,186.38,186.35,2.14]
[1762028234313,2.33034841,186.37,186.35,2.14]
[1762028234512,2.33034841,186.36,186.35,2.14]
[1762028234716,2.33034841,186.36,186.35,6.51265109]
[1762028235215,2.69,186.39,186.36,2.14]
[1762028235410,2.33239677,186.38,186.36,2.14]
[1762028235610,2.69,186.39,186.36,2.14]
[1762028235905,2.33239677,186.38,186.36,2.14]
[1762028236106,2.33239677,186.37,186.36,2.14]
[1762028236720,2.33381667,186.37,186.36,2.14]
[1762028237323,2.33582817,186.37,186.36,6.51899266]
[1762028241219,2.69,186.41,186.36,4.37899266]
[1762028241419,3.24147337,186.44,186.32,4.98295193]
[1762028241420,5.13644388,186.4,186.32,4.98295193]
[1762028241718,2.8,186.4,186.34,2.14]
[1762028241922,5.13644048,186.39,186.36,2.14]
[1762028242222,2.33644048,186.38,186.36,2.14]
[1762028242521,2.33644048,186.37,186.36,2.14]
[1762028242719,2.33644048,186.37,186.36,6.52033337]
[1762028244521,2.33644048,186.37,186.36,6.52023004]
[1762028244719,2.8,186.39,186.37,2.14]
[1762028245014,2.33646912,186.38,186.37,2.14]
[1762028245213,2.33646912,186.38,186.37,6.51841075]
[1762028245427,2.33647955,186.38,186.37,6.51841075]
[1762028247926,2.8,186.42,186.38,2.14]
[1762028248126,2.8,186.4,186.38,2.14]
[1762028248326,2.33663904,186.39,186.38,2.14]
[1762028248831,2.33656569,186.39,186.38,4.37779755]
[1762028249227,2.33656569,186.39,186.38,6.51779755]
[1762028250220,2.8,186.46,186.38,4.37779755]
[1762028250421,2.33584243,186.45,186.4,2.14]
[1762028250730,2.33584243,186.44,186.4,2.14]
[1762028251027,2.33584243,186.43,186.4,2.14]
[1762028251230,2.33584243,186.42,186.4,2.14]
[1762028251430,2.33584243,186.41,186.4,2.14]
[1762028251617,2.33584243,186.41,186.4,6.51376078]
[1762028252023,2.8,186.46,186.41,2.14]
[1762028252223,2.8,186.45,186.41,2.14]
[1762028252426,2.33489798,186.44,186.41,2.14]
[1762028252627,2.33489798,186.43,186.41,2.14]
[1762028252829,2.33489798,186.42,186.41,2.14]
[1762028253126,2.33490705,186.42,186.41,4.37296508]
[1762028253535,2.33490705,186.42,186.41,6.51296508]
[1762028253831,2.33490705,186.42,186.41,7.59296508]
[1762028254129,2.33490705,186.42,186.41,3.22]
[1762028254332,2.8,186.48,186.42,2.14]
[1762028254627,2.33303075,186.47,186.42,2.14]
[1762028254831,2.8,186.48,186.42,2.14]
[1762028254832,2.33303075,186.46,186.42,2.14]
[1762028255025,2.33303075,186.45,186.42,2.14]
[1762028255336,2.33303075,186.44,186.42,2.14]
[1762028255527,2.33303075,186.43,186.42,2.14]
[1762028255726,2.33303075,186.43,186.42,6.50604992]
[1762028256032,2.332087,186.43,186.42,4.36604992]
[1762028256532,2.332087,186.43,186.42,6.50604992]
[1762028256729,2.332087,186.43,186.42,7.58604992]
[1762028257333,1.71170334,186.43,186.42,7.58604992]
[1762028257725,2.8,186.5,186.43,2.13]
[1762028258024,2.8,186.5,186.45,2.13]
[1762028259535,2.07197366,186.53,186.45,2.13]